fUST/lending_fUST_20240410
["ID","MTS","AMOUNT","RATE_DAILY","PERIOD"]
[322051015,1712727040169,-500.0,0.00022739,2]
[322051016,1712727040181,-500.0,0.00022739,2]
[322051017,1712727040191,-500.0,0.00022739,2]
[322051018,1712727040199,-500.0,0.00022739,2]
[322051019,1712727040208,-500.0,0.00022739,2]
[322051020,1712727040217,-541.98,0.00022739,2]
[322051021,1712727040226,-412.18,0.00022739,2]
[322051022,1712727040235,-500.0,0.00022739,2]
[322051023,1712727040244,-2294.52,0.00022739,2]
[322051024,1712727040254,-403.94,0.00022739,2]
[322051025,1712727040263,-500.0,0.00022739,2]
[322051026,1712727040272,-558.18,0.00022739,2]
[322051027,1712727040281,-500.0,0.00022739,2]
[322051028,1712727040290,-500.0,0.00022739,2]
[322051029,1712727040299,-880.75,0.00022739,2]
[322051030,1712727040308,-500.0,0.00022739,2]
[322051031,1712727040317,-189.94811751,0.00022739,2]
[322051032,1712727040326,-500.0,0.00022739,2]
[322051033,1712727040336,-500.0,0.00022739,2]
[322051034,1712727040344,-889.28026318,0.00022845,2]
[322051035,1712727040354,-300.0,0.00022875,2]
[322051036,1712727040363,-208.92965032,0.00022962,2]
[322051037,1712727040373,-2412.65,0.00023012,2]
[322051038,1712727040382,-500.0,0.00023013,2]
[322051039,1712727040390,-500.0,0.00023013,2]
[322051040,1712727040399,-500.0,0.00023013,2]
[322051041,1712727040408,-500.0,0.00023013,2]
[322051042,1712727040417,-500.0,0.00023013,2]
[322051043,1712727040427,-500.0,0.00023013,2]
[322051044,1712727040437,-500.0,0.00023013,2]
[322051045,1712727040446,-386.74726023,0.00023013,2]
[322051046,1712727040455,-500.0,0.00023013,2]
[322051047,1712727040464,-500.0,0.00023013,2]
[322051048,1712727040474,-500.0,0.00023013,2]
[322051049,1712727040482,-744.76,0.00023013,2]
[322051050,1712727040491,-575.3,0.00023013,2]
[322051051,1712727040502,-500.0,0.00023013,2]
[322051052,1712727040512,-500.0,0.00023013,2]
[322051053,1712727040521,-500.0,0.00023013,2]
[322051054,1712727040530,-500.0,0.00023013,2]
[322051055,1712727040540,-500.0,0.00023013,2]
[322051056,1712727040550,-541.98,0.00023013,2]
[322051057,1712727040559,-500.0,0.00023013,2]
[322051058,1712727040568,-2294.52,0.00023013,2]
[322051059,1712727040579,-500.0,0.00023013,2]
[322051060,1712727040590,-500.0,0.00023013,2]
[322051061,1712727040600,-500.0,0.00023013,2]
[322051062,1712727040610,-880.75,0.00023013,2]
[322051063,1712727040621,-500.0,0.00023013,2]
[322051064,1712727040631,-500.0,0.00023013,2]
[322051065,1712727040640,-500.0,0.00023013,2]
[322051066,1712727040649,-1009.80733791,0.00023055,2]
[322051067,1712727040661,-420.0,0.00023133,2]
[322051068,1712727040670,-2412.65,0.00023286,2]
[322051069,1712727040679,-500.0,0.00023287,2]
[322051070,1712727040689,-500.0,0.00023287,2]
[322051071,1712727040698,-500.0,0.00023287,2]
[322051072,1712727040707,-592.79153774,0.00023287,2]
[322051073,1712727040717,-500.0,0.00023287,2]
[322051074,1712727040727,-500.0,0.00023287,2]
[322051075,1712727040737,-500.0,0.00023287,2]
[322051076,1712727040747,-500.0,0.00023287,2]
[322051077,1712727040756,-500.0,0.00023287,2]
[322051078,1712727040766,-744.76,0.00023287,2]
[322051079,1712727040775,-575.3,0.00023287,2]
[322051080,1712727040784,-500.0,0.00023287,2]
[322051081,1712727040793,-500.0,0.00023287,2]
[322051082,1712727040803,-509.83864137,0.00023287,2]
[322051083,1712727040811,-500.0,0.00023287,2]
[322051084,1712727040820,-500.0,0.00023287,2]
[322051085,1712727040831,-541.98,0.00023287,2]
[322051086,1712727040841,-500.0,0.00023287,2]
[322051087,1712727040850,-2294.52,0.00023287,2]
[322051088,1712727040860,-500.0,0.00023287,2]
[322051089,1712727040869,-500.0,0.00023287,2]
[322051090,1712727040878,-500.0,0.00023287,2]
[322051091,1712727040887,-880.75,0.00023287,2]
[322051092,1712727040896,-500.0,0.00023287,2]
[322051093,1712727040905,-276.0,0.00023287,2]
[322051094,1712727040915,-254.84,0.00023287,2]
[322051095,1712727040925,-2000.0,0.0002354,2]
[322051096,1712727040938,-2412.65,0.0002356,2]
[322051097,1712727040948,-500.0,0.00023561,2]
[322051098,1712727040959,-500.0,0.00023561,2]
[322051099,1712727040968,-500.0,0.00023561,2]
[322051100,1712727040978,-429.20825194,0.00023561,2]
[322051101,1712727040987,-21.86205112,0.00023561,2]
[322051971,1712727257660,168.31517796,0.00020955,2]
[322051972,1712727319927,4298.47436768,0.00020955,2]
[322051973,1712727643353,1201.6981637,0.00020616,2]
[322051974,1712727682104,155.90721378,0.00020929,2]
[322051976,1712727959223,249.06652572,0.00020923,2]
[322051977,1712728118276,422.73611657,0.00021001,2]
[322051978,1712728144893,154.98450155,0.00021001,2]
[322051979,1712728146338,1617.59849486,0.00021001,2]
[322051980,1712728148027,283.42171032,0.00021001,2]
[322051981,1712728158681,154.98450155,0.00021001,2]
[322051982,1712728161806,150.0,0.00018901,2]
[322052016,1712728232251,-936.36329074,0.00021188,2]
[322052018,1712728232260,-155.90721378,0.00021189,2]
[322052020,1712728232270,-155.90721378,0.00021449,2]
[322052022,1712728232279,-155.90721378,0.00021709,2]
[322052024,1712728232288,-2064.59889432,0.00021811,2]
[322052069,1712728238220,-552.14824761,0.00021811,2]
[322052070,1712728238230,-2000.0,0.00021817,2]
[322052071,1712728238239,-185.70779934,0.00021817,2]
[322052072,1712728238251,-79.09601289,0.00021817,2]
[322052073,1712728238261,-1094.78620314,0.00021817,2]
[322052074,1712728238270,-300.0,0.00021904,2]
[322052075,1712728238279,-300.0,0.00021904,2]
[322052076,1712728238289,-762.0750369,0.00021905,2]
[322052078,1712728238300,-247.73230101,0.00021905,2]
[322052080,1712728238309,-379.78325215,0.00021905,2]
[322052082,1712728238318,-500.0,0.00021905,2]
[322052083,1712728238327,-500.0,0.00021905,2]
[322052085,1712728238336,-500.0,0.00021905,2]
[322052087,1712728238346,-323.23908882,0.00021905,2]
[322052089,1712728238356,-601.30359888,0.00021905,2]
[322052090,1712728238365,-397.63016307,0.00021905,2]
[322052091,1712728238374,-500.0,0.00021905,2]
[322052092,1712728238383,-500.0,0.00021905,2]
[322052093,1712728238392,-243.91979073,0.00021905,2]
[322052094,1712728238401,-445.98025068,0.00021905,2]
[322052095,1712728238413,-54.01974932,0.00021905,2]
[322052096,1712728238422,-500.0,0.00021905,2]
[322052097,1712728238431,-187.17177939,0.00021905,2]
[322052098,1712728238442,-500.0,0.00021905,2]
[322052099,1712728238451,-500.0,0.00021905,2]
[322052100,1712728238459,-232.58777664,0.00021905,2]
[322052101,1712728238469,-500.0,0.00021905,2]
[322052102,1712728238478,-30680.68425425,0.00021906,2]
[322052103,1712728238489,-13928.64457709,0.00021906,2]
[322052104,1712728238501,-39581.97132689,0.00021906,2]
[322052105,1712728238515,-62414.33412314,0.00021906,2]
[322052106,1712728238523,-500.0,0.00021917,2]
[322052107,1712728238532,-500.0,0.00021917,2]
[322052108,1712728238542,-500.0,0.00021917,2]
[322052109,1712728238552,-500.0,0.00021917,2]
[322052110,1712728238562,-500.0,0.00021917,2]
[322052111,1712728238571,-500.0,0.00021917,2]
[322052112,1712728238580,-500.0,0.00021917,2]
[322052113,1712728238591,-500.0,0.00021917,2]
[322052114,1712728238599,-428.10313705,0.00021917,2]
[322052115,1712728238610,-500.0,0.00021917,2]
[322052116,1712728238619,-518.85610216,0.00021917,2]
[322052117,1712728238628,-292.9000006,0.00021917,2]
[322052118,1712728238638,-500.0,0.00021917,2]
[322052119,1712728238646,-500.0,0.00021917,2]
[322052120,1712728238655,-500.0,0.00021917,2]
[322052121,1712728238665,-500.0,0.00021917,2]
[322052122,1712728238675,-492.16815686,0.00021917,2]
[322052123,1712728238684,-503.02102843,0.00021917,2]
[322052124,1712728238694,-502.43028548,0.00021917,2]
[322052125,1712728238703,-500.0,0.00021917,2]
[322052126,1712728238712,-506.66489021,0.00021917,2]
[322052127,1712728238721,-500.0,0.00021917,2]
[322052128,1712728238730,-500.0,0.00021917,2]
[322052129,1712728238739,-500.0,0.00021917,2]
[322052130,1712728238748,-503.77683325,0.00021917,2]
[322052131,1712728238758,-500.0,0.00021917,2]
[322052132,1712728238767,-500.0,0.00021917,2]
[322052133,1712728238776,-500.0,0.00021917,2]
[322052134,1712728238785,-500.0,0.00021917,2]
[322052135,1712728238795,-500.0,0.00021917,2]
[322052136,1712728238804,-502.0539563,0.00021917,2]
[322052137,1712728238813,-500.0,0.00021917,2]
[322052138,1712728238822,-500.0,0.00021917,2]
[322052139,1712728238831,-506.77631211,0.00021917,2]
[322052140,1712728238840,-500.0,0.00021917,2]
[322052141,1712728238849,-500.0,0.00021917,2]
[322052142,1712728238859,-352.23752725,0.00021917,2]
[322052143,1712728238869,-501.24044802,0.00021917,2]
[322052144,1712728238878,-500.0,0.00021917,2]
[322052145,1712728238887,-500.0,0.00021917,2]
[322052146,1712728238896,-500.2733828,0.00021917,2]
[322052147,1712728238908,-502.15530542,0.00021917,2]
[322052148,1712728238924,-500.0,0.00021917,2]
[322052149,1712728238937,-504.70509203,0.00021917,2]
[322052150,1712728238947,-500.0,0.00021917,2]
[322052151,1712728238956,-500.0,0.00021917,2]
[322052152,1712728238966,-500.0,0.00021917,2]
[322052153,1712728239125,-500.0,0.00021917,2]
[322052154,1712728239135,-500.0,0.00021917,2]
[322052155,1712728239145,-500.0,0.00021917,2]
[322052156,1712728239155,-500.0,0.00021917,2]
[322052157,1712728239164,-500.0,0.00021917,2]
[322052158,1712728239174,-500.0,0.00021917,2]
[322052159,1712728239183,-500.0,0.00021917,2]
[322052160,1712728239193,-502.06123262,0.00021917,2]
[322052161,1712728239202,-500.0,0.00021917,2]
[322052162,1712728239212,-501.61083213,0.00021917,2]
[322052163,1712728239221,-500.0,0.00021917,2]
[322052164,1712728239230,-504.20112112,0.00021917,2]
[322052165,1712728239239,-502.51844573,0.00021917,2]
[322052166,1712728239249,-500.0,0.00021917,2]
[322052167,1712728239258,-500.0,0.00021917,2]
[322052168,1712728239268,-500.0,0.00021917,2]
[322052169,1712728239277,-500.0,0.00021917,2]
[322052170,1712728239287,-500.0,0.00021917,2]
[322052171,1712728239296,-500.0,0.00021917,2]
[322052172,1712728239305,-500.0,0.00021917,2]
[322052173,1712728239314,-500.0,0.00021917,2]
[322052174,1712728239323,-232.63186136,0.00021917,2]
[322052175,1712728239332,-500.0,0.00021917,2]
[322052176,1712728239342,-491.02514145,0.00021917,2]
[322052177,1712728239352,-500.0,0.00021917,2]
[322052178,1712728239361,-500.0,0.00021917,2]
[322052179,1712728239371,-500.0,0.00021917,2]
[322052180,1712728239380,-500.0,0.00021917,2]
[322052181,1712728239390,-500.0,0.00021917,2]
[322052182,1712728239399,-500.0,0.00021917,2]
[322052183,1712728239408,-500.0,0.00021917,2]
[322052184,1712728239418,-500.0,0.00021917,2]
[322052185,1712728239427,-509.99280352,0.00021917,2]
[322052186,1712728239437,-500.0,0.00021917,2]
[322052187,1712728239447,-500.0,0.00021917,2]
[322052188,1712728239457,-500.0,0.00021917,2]
[322052189,1712728239469,-500.0,0.00021917,2]
[322052190,1712728239479,-500.0,0.00021917,2]
[322052191,1712728239490,-500.0,0.00021917,2]
[322052192,1712728239502,-500.0,0.00021917,2]
[322052193,1712728239513,-506.37580024,0.00021917,2]
[322052194,1712728239522,-506.14,0.00021917,2]
[322052195,1712728239532,-500.0,0.00021917,2]
[322052196,1712728239543,-500.0,0.00021917,2]
[322052197,1712728239552,-500.0,0.00021917,2]
[322052198,1712728239562,-478.32587109,0.00021917,2]
[322052199,1712728239574,-500.0,0.00021917,2]
[322052200,1712728239583,-500.0,0.00021917,2]
[322052201,1712728239593,-500.0,0.00021917,2]
[322052202,1712728239606,-500.72848521,0.00021917,2]
[322052203,1712728239616,-500.0,0.00021917,2]
[322052204,1712728239625,-500.0,0.00021917,2]
[322052205,1712728239635,-500.0,0.00021917,2]
[322052206,1712728239644,-506.77901905,0.00021917,2]
[322052207,1712728239654,-500.0,0.00021917,2]
[322052208,1712728239662,-500.0,0.00021917,2]
[322052209,1712728239672,-500.0,0.00021917,2]
[322052210,1712728239681,-509.51486224,0.00021917,2]
[322052211,1712728239691,-641.10681484,0.00021917,2]
[322052212,1712728239700,-500.0,0.00021917,2]
[322052213,1712728239710,-500.0,0.00021917,2]
[322052214,1712728239719,-500.0,0.00021917,2]
[322052215,1712728239728,-430.89700097,0.00021917,2]
[322052216,1712728239738,-500.0,0.00021917,2]
[322052217,1712728239748,-500.0,0.00021917,2]
[322052218,1712728239758,-500.0,0.00021917,2]
[322052219,1712728239768,-159.72508705,0.00021917,2]
[322052220,1712728239777,-500.0,0.00021917,2]
[322052221,1712728239787,-505.76983174,0.00021917,2]
[322052222,1712728239796,-501.94460501,0.00021917,2]
[322052223,1712728239807,-512.2127395,0.00021917,2]
[322052224,1712728239816,-893.37,0.00021917,2]
[322052225,1712728239825,-500.0,0.00021917,2]
[322052226,1712728239835,-500.0,0.00021917,2]
[322052227,1712728239845,-500.0,0.00021917,2]
[322052228,1712728239857,-500.0,0.00021917,2]
[322052229,1712728239866,-515.17,0.00021917,2]
[322052230,1712728239876,-500.0,0.00021917,2]
[322052231,1712728239886,-500.0,0.00021917,2]
[322052232,1712728239895,-500.0,0.00021917,2]
[322052233,1712728239906,-500.0,0.00021917,2]
[322052234,1712728239916,-500.0,0.00021917,2]
[322052235,1712728239927,-500.0,0.00021917,2]
[322052236,1712728239937,-500.0,0.00021917,2]
[322052237,1712728239947,-500.0,0.00021917,2]
[322052238,1712728239957,-500.0,0.00021917,2]
[322052239,1712728239967,-500.0,0.00021917,2]
[322052240,1712728239978,-500.0,0.00021917,2]
[322052241,1712728239988,-500.0,0.00021917,2]
[322052242,1712728239998,-341.57944337,0.00021917,2]
[322052243,1712728240007,-500.0,0.00021917,2]
[322052244,1712728240017,-500.0,0.00021917,2]
[322052245,1712728240027,-503.72671144,0.00021917,2]
[322052246,1712728240037,-500.0,0.00021917,2]
[322052247,1712728240047,-506.88398481,0.00021917,2]
[322052248,1712728240056,-500.0,0.00021917,2]
[322052249,1712728240066,-503.15666256,0.00021917,2]
[322052250,1712728240076,-500.0,0.00021917,2]
[322052251,1712728240085,-500.0,0.00021917,2]
[322052252,1712728240095,-649.68,0.00021917,2]
[322052253,1712728240107,-500.0,0.00021917,2]
[322052254,1712728240116,-504.02862439,0.00021917,2]
[322052255,1712728240126,-503.94137622,0.00021917,2]
[322052256,1712728240136,-500.0,0.00021917,2]
[322052257,1712728240145,-581.7,0.00021917,2]
[322052258,1712728240155,-500.0,0.00021917,2]
[322052259,1712728240165,-500.0,0.00021917,2]
[322052260,1712728240175,-2502.2,0.00021917,2]
[322052261,1712728240184,-500.0,0.00021917,2]
[322052262,1712728240194,-500.0,0.00021917,2]
[322052263,1712728240204,-500.0,0.00021917,2]
[322052264,1712728240214,-501.32595177,0.00021917,2]
[322052265,1712728240224,-500.0,0.00021917,2]
[322052266,1712728240234,-500.0,0.00021917,2]
[322052267,1712728240245,-500.0,0.00021917,2]
[322052268,1712728240254,-500.0,0.00021917,2]
[322052269,1712728240264,-500.0,0.00021917,2]
[322052271,1712728240273,-500.0,0.00021917,2]
[322052272,1712728240282,-500.0,0.00021917,2]
[322052274,1712728240292,-506.7451759,0.00021917,2]
[322052276,1712728240301,-500.0,0.00021917,2]
[322052278,1712728240310,-500.0,0.00021917,2]
[322052279,1712728240319,-525.52,0.00021917,2]
[322052280,1712728240328,-500.0,0.00021917,2]
[322052281,1712728240337,-500.0,0.00021917,2]
[322052282,1712728240347,-502.94347435,0.00021917,2]
[322052283,1712728240361,-500.0,0.00021917,2]
[322052284,1712728240370,-500.0,0.00021917,2]
[322052285,1712728240379,-500.0,0.00021917,2]
[322052286,1712728240389,-500.0,0.00021917,2]
[322052287,1712728240398,-500.0,0.00021917,2]
[322052288,1712728240407,-500.0,0.00021917,2]
[322052289,1712728240416,-500.0,0.00021917,2]
[322052290,1712728240425,-500.0,0.00021917,2]
[322052291,1712728240434,-962.97,0.00021917,2]
[322052292,1712728240444,-517.73284349,0.00021917,2]
[322052293,1712728240453,-155.90721378,0.0002197,2]
[322052294,1712728240462,-1094.78620314,0.0002216,2]
[322052295,1712728240471,-500.0,0.0002219,2]
[322052296,1712728240480,-537.16972487,0.0002219,2]
[322052297,1712728240489,-500.0,0.0002219,2]
[322052298,1712728240499,-670.51,0.0002219,2]
[322052299,1712728240512,-500.0,0.0002219,2]
[322052300,1712728240521,-500.0,0.0002219,2]
[322052301,1712728240530,-500.0,0.0002219,2]
[322052302,1712728240540,-500.0,0.0002219,2]
[322052303,1712728240550,-500.0,0.0002219,2]
[322052304,1712728240559,-500.0,0.0002219,2]
[322052305,1712728240569,-500.0,0.00022191,2]
[322052306,1712728240578,-598.39,0.00022191,2]
[322052307,1712728240588,-500.0,0.00022191,2]
[322052308,1712728240598,-500.0,0.00022191,2]
[322052309,1712728240610,-500.0,0.00022191,2]
[322052310,1712728240619,-500.0,0.00022191,2]
[322052311,1712728240628,-500.0,0.00022191,2]
[322052312,1712728240637,-500.0,0.00022191,2]
[322052313,1712728240647,-500.0,0.00022191,2]
[322052314,1712728240656,-326.40000184,0.00022191,2]
[322052315,1712728240665,-500.0,0.00022191,2]
[322052316,1712728240674,-500.0,0.00022191,2]
[322052317,1712728240684,-500.0,0.00022191,2]
[322052318,1712728240693,-500.0,0.00022191,2]
[322052319,1712728240702,-500.0,0.00022191,2]
[322052320,1712728240711,-500.0,0.00022191,2]
[322052321,1712728240720,-500.0,0.00022191,2]
[322052322,1712728240730,-500.0,0.00022191,2]
[322052323,1712728240739,-500.0,0.00022191,2]
[322052324,1712728240748,-500.0,0.00022191,2]
[322052325,1712728240757,-500.0,0.00022191,2]
[322052326,1712728240767,-500.0,0.00022191,2]
[322052327,1712728240776,-500.0,0.00022191,2]
[322052328,1712728240786,-503.60144929,0.00022191,2]
[322052329,1712728240795,-500.0,0.00022191,2]
[322052330,1712728240804,-500.0,0.00022191,2]
[322052331,1712728240813,-500.0,0.00022191,2]
[322052332,1712728240822,-500.0,0.00022191,2]
[322052333,1712728240831,-500.0,0.00022191,2]
[322052334,1712728240841,-500.0,0.00022191,2]
[322052335,1712728240850,-506.14,0.00022191,2]
[322052336,1712728240860,-500.0,0.00022191,2]
[322052337,1712728240870,-500.0,0.00022191,2]
[322052338,1712728240879,-500.0,0.00022191,2]
[322052339,1712728240889,-500.0,0.00022191,2]
[322052340,1712728240898,-500.0,0.00022191,2]
[322052341,1712728240909,-500.0,0.00022191,2]
[322052342,1712728240918,-500.0,0.00022191,2]
[322052343,1712728240927,-500.0,0.00022191,2]
[322052344,1712728240937,-508.02910004,0.00022191,2]
[322052345,1712728240947,-406.97162284,0.00022191,2]
[322052346,1712728240957,-500.0,0.00022191,2]
[322052347,1712728240966,-893.37,0.00022191,2]
[322052348,1712728240976,-500.0,0.00022191,2]
[322052349,1712728240985,-500.0,0.00022191,2]
[322052350,1712728240994,-515.17,0.00022191,2]
[322052351,1712728241004,-248.15,0.00022191,2]
[322052352,1712728241013,-500.0,0.00022191,2]
[322052353,1712728241023,-500.0,0.00022191,2]
[322052354,1712728241033,-500.0,0.00022191,2]
[322052355,1712728241043,-500.0,0.00022191,2]
[322052356,1712728241053,-500.0,0.00022191,2]
[322052357,1712728241063,-500.0,0.00022191,2]
[322052358,1712728241073,-500.0,0.00022191,2]
[322052359,1712728241082,-500.0,0.00022191,2]
[322052360,1712728241092,-614.43363592,0.00022191,2]
[322052361,1712728241104,-500.0,0.00022191,2]
[322052362,1712728241113,-500.0,0.00022191,2]
[322052363,1712728241124,-500.0,0.00022191,2]
[322052364,1712728241134,-649.68,0.00022191,2]
[322052365,1712728241143,-500.0,0.00022191,2]
[322052366,1712728241153,-616.42300415,0.00022191,2]
[322052367,1712728241163,-581.7,0.00022191,2]
[322052368,1712728241172,-500.0,0.00022191,2]
[322052369,1712728241182,-2502.2,0.00022191,2]
[322052370,1712728241192,-500.0,0.00022191,2]
[322052371,1712728241202,-500.0,0.00022191,2]
[322052372,1712728241212,-500.0,0.00022191,2]
[322052373,1712728241223,-500.0,0.00022191,2]
[322052374,1712728241234,-500.0,0.00022191,2]
[322052375,1712728241244,-500.0,0.00022191,2]
[322052376,1712728241254,-500.0,0.00022191,2]
[322052377,1712728241264,-171.83381504,0.00022191,2]
[322052378,1712728241274,-500.0,0.00022191,2]
[322052379,1712728241284,-525.52,0.00022191,2]
[322052380,1712728241294,-500.0,0.00022191,2]
[322052381,1712728241304,-500.0,0.00022191,2]
[322052382,1712728241314,-500.0,0.00022191,2]
[322052383,1712728241323,-501.01806855,0.00022191,2]
[322052384,1712728241333,-500.0,0.00022191,2]
[322052385,1712728241342,-500.0,0.00022191,2]
[322052386,1712728241354,-500.0,0.00022191,2]
[322052387,1712728241364,-500.0,0.00022191,2]
[322052388,1712728241374,-962.97,0.00022191,2]
[322052389,1712728241383,-155.90721378,0.0002223,2]
[322052390,1712728241393,-1158.1257229,0.00022458,2]
[322052391,1712728241402,-500.0,0.00022464,2]
[322052392,1712728241412,-500.0,0.00022464,2]
[322052393,1712728241421,-670.51,0.00022464,2]
[322052394,1712728241431,-500.70197687,0.00022464,2]
[322052395,1712728241440,-500.0,0.00022464,2]
[322052396,1712728241450,-500.0,0.00022464,2]
[322052397,1712728241459,-500.0,0.00022464,2]
[322052398,1712728241468,-500.0,0.00022464,2]
[322052399,1712728241478,-500.0,0.00022464,2]
[322052400,1712728241488,-500.0,0.00022465,2]
[322052401,1712728241501,-500.0,0.00022465,2]
[322052402,1712728241511,-500.0,0.00022465,2]
[322052403,1712728241521,-500.0,0.00022465,2]
[322052404,1712728241531,-500.0,0.00022465,2]
[322052405,1712728241542,-500.0,0.00022465,2]
[322052406,1712728241552,-500.0,0.00022465,2]
[322052407,1712728241561,-500.0,0.00022465,2]
[322052408,1712728241570,-500.0,0.00022465,2]
[322052409,1712728241580,-438.27934081,0.00022465,2]
[322052410,1712728241589,-507.82,0.00022465,2]
[322052411,1712728241598,-500.0,0.00022465,2]
[322052412,1712728241611,-500.0,0.00022465,2]
[322052413,1712728241621,-500.0,0.00022465,2]
[322052414,1712728241631,-500.0,0.00022465,2]
[322052415,1712728241640,-500.0,0.00022465,2]
[322052416,1712728241650,-500.0,0.00022465,2]
[322052417,1712728241660,-500.0,0.00022465,2]
[322052418,1712728241669,-506.14,0.00022465,2]
[322052419,1712728241678,-500.0,0.00022465,2]
[322052420,1712728241687,-500.0,0.00022465,2]
[322052421,1712728241696,-500.0,0.00022465,2]
[322052422,1712728241706,-307.88566827,0.00022465,2]
[322052423,1712728241715,-500.0,0.00022465,2]
[322052424,1712728241822,-500.0,0.00022465,2]
[322052425,1712728241832,-893.37,0.00022465,2]
[322052426,1712728241842,-500.0,0.00022465,2]
[322052427,1712728241854,-500.0,0.00022465,2]
[322052428,1712728241863,-515.17,0.00022465,2]
[322052429,1712728241872,-500.0,0.00022465,2]
[322052430,1712728241882,-500.0,0.00022465,2]
[322052431,1712728241891,-500.0,0.00022465,2]
[322052432,1712728241899,-500.0,0.00022465,2]
[322052433,1712728241909,-500.0,0.00022465,2]
[322052434,1712728241919,-500.0,0.00022465,2]
[322052435,1712728241928,-500.0,0.00022465,2]
[322052436,1712728241937,-500.0,0.00022465,2]
[322052437,1712728241946,-649.68,0.00022465,2]
[322052438,1712728241956,-500.0,0.00022465,2]
[322052439,1712728241965,-581.7,0.00022465,2]
[322052440,1712728241974,-500.0,0.00022465,2]
[322052441,1712728241983,-2502.2,0.00022465,2]
[322052442,1712728241993,-500.0,0.00022465,2]
[322052443,1712728242002,-500.0,0.00022465,2]
[322052444,1712728242011,-500.0,0.00022465,2]
[322052445,1712728242021,-500.0,0.00022465,2]
[322052446,1712728242030,-500.0,0.00022465,2]
[322052447,1712728242039,-500.0,0.00022465,2]
[322052448,1712728242048,-525.52,0.00022465,2]
[322052449,1712728242058,-500.0,0.00022465,2]
[322052450,1712728242067,-500.0,0.00022465,2]
[322052451,1712728242076,-500.0,0.00022465,2]
[322052452,1712728242086,-500.0,0.00022465,2]
[322052453,1712728242099,-500.0,0.00022465,2]
[322052454,1712728242110,-500.0,0.00022465,2]
[322052455,1712728242119,-962.97,0.00022465,2]
[322052456,1712728242128,-155.90721378,0.0002249,2]
[322052457,1712728242137,-1094.78620314,0.00022502,2]
[322052458,1712728242146,-500.0,0.00022738,2]
[322052459,1712728242156,-500.0,0.00022738,2]
[322052460,1712728242165,-670.51,0.00022738,2]
[322052461,1712728242174,-500.0,0.00022738,2]
[322052462,1712728242183,-500.0,0.00022738,2]
[322052463,1712728242192,-500.0,0.00022738,2]
[322052464,1712728242202,-500.0,0.00022738,2]
[322052465,1712728242211,-151.0,0.00022738,2]
[322052466,1712728242221,-151.0,0.00022738,2]
[322052467,1712728242230,-151.0,0.00022738,2]
[322052468,1712728242239,-500.0,0.00022739,2]
[322052469,1712728242248,-471.47185933,0.00022739,2]
[322052470,1712728242258,-500.0,0.00022739,2]
[322052471,1712728242267,-212.11918038,0.00022739,2]
[322052472,1712728242276,-500.0,0.00022739,2]
[322052473,1712728242285,-500.0,0.00022739,2]
[322052474,1712728242294,-500.0,0.00022739,2]
[322052475,1712728242303,-622.78627392,0.00022739,2]